Cogmind - Beta 13 @@@ ROGUE MODE // 2024.05.31 @ 08:25:25 Player: Findu Result: Destroyed by Y-45 Defender with Beam Rifle Performance ------------- Evolutions (1) 500 Regions Visited (4) 800 Robots Destroyed (78) 390 Value Destroyed (1719) 1719 Prototype IDs (3) 60 Alien Tech Used (0) 0 Bonus (114) 114 TOTAL SCORE: 3583 Bonus ------- High Alert Combat Kills 114 Cogmind --------- Core Integrity 0/400 Matter 268/300 Energy 280/280 System Corruption 2% Temperature Cool (16) Movement Treading (160) Location -9/Storage Parts ------- > --- POWER (1) -------- Cooled Ion Engine > --- PROPULSION (2) --- Light Treads Light Treads > --- UTILITY (4) ------ Medium Storage Unit Signal Interpreter Improved Light Armor Plating > --- WEAPON (2) ------- Beam Rifle Heavy Assault Rifle > --- INVENTORY (10) --- Light Treads Medium Matter Pod (100) Sensor Array Makeshift Sword Peak State ------------ > --- POWER ------------ Cooled Ion Engine > --- PROPULSION ------- Light Treads Light Treads > --- UTILITY ---------- Medium Storage Unit Signal Interpreter Targeting Computer Improved Light Armor Plating > --- WEAPON ----------- Heavy Assault Rifle Makeshift Sword > --- INVENTORY -------- Light Treads Medium Matter Pod Sensor Array Beam Rifle Heavy Assault Rifle Rocket Launcher [Rating: 17] Favorites ----------- Power Cooled Ion Engine Engine Cooled Ion Engine Propulsion Light Treads Treads Light Treads Leg Aluminum Leg Wheel Wheel Utility Signal Interpreter Device Sensor Array Storage Small Storage Unit Processor Signal Interpreter Protection Backup Plating III Weapon Heavy Assault Rifle Energy Gun EM Pulse Gun Ballistic Gun Heavy Assault Rifle Launcher Rocket Launcher Special Weapon Mining Laser Slashing Weapon Makeshift Sword Build | -11 -10 -10 -9 -9 ------- Run | Yrd Mat Min Mat Sto Slots Evolved 2 | . . . 2 . Power . | . . . . . Propulsion . | . . . . . Utility 2 | . . . 2 . Weapon . | . . . . . Parts Attached 67 | 7 2 1 35 22 Power 5 | 1 1 . 2 1 Engine 5 | 1 1 . 2 1 Core . | . . . . . Reactor . | . . . . . Propulsion 11 | 3 . . 5 3 Treads 7 | 2 . . 2 3 Leg 1 | 1 . . . . Wheel 3 | . . . 3 . Hover . | . . . . . Flight . | . . . . . Utility 17 | 1 1 . 11 4 Device 5 | . . . 3 2 Storage 2 | 1 . . 1 . Processor 3 | . 1 . 2 . Hackware . | . . . . . Protection 7 | . . . 5 2 Artifact . | . . . . . Weapon 34 | 2 . 1 17 14 Energy Gun 7 | 1 . . 3 3 Energy Cannon . | . . . . . Ballistic Gun 14 | 1 . . 8 5 Ballistic Cannon . | . . . . . Launcher 5 | . . 1 3 1 Special Weapon 1 | . . . 1 . Impact Weapon . | . . . . . Slashing Weapon 7 | . . . 2 5 Piercing Weapon . | . . . . . Special Melee Weapon . | . . . . . Unidentified Prototypes 1 | . . . 1 . Parts Lost 7 | . . . 2 5 Power 1 | . . . . 1 Propulsion 2 | . . . . 2 Utility . | . . . . . Weapon 4 | . . . 2 2 Highest Loss Streak 2 | . . . 1 2 To Critical Strikes 1 | . . . . 1 Average Slot Usage (%) 98 | . 98 100 97 98 Engine 12 | . 14 14 11 10 Treads 20 | . 28 28 13 20 Wheel 3 | . . . 8 1 Device 3 | . . . 5 7 Storage 12 | . 14 14 11 11 Processor 18 | . 12 14 22 22 Protection 2 | . . . 3 3 Energy Gun 9 | . 14 14 7 5 Ballistic Gun 13 | . 14 11 12 13 Naked Turns . | . . . . . Heaviest Build 27 | 12 14 16 27 27 Greatest Support 40 | 40 40 40 40 40 Greatest Overweight (x) 2 | 2 . . 2 2 Average Overweight (x) . | . . . 1 . Largest Inventory Capacity 10 | 8 8 8 10 10 Average Capacity 8 | 5 8 8 8 10 Most Carried 9 | 3 8 8 9 8 Average Carried 6 | 1 4 7 7 6 Final Capacity 10 | 8 8 8 10 10 Final Carried 8 | 1 8 8 8 4 Class Distribution -------------------- 97% | Mutant Dominant Class ---------------- Mutant | -10/Materials Mutant | -10/Mines Mutant | -9/Materials Mutant | -9/Storage Resources | -11 -10 -10 -9 -9 ----------- Run | Yrd Mat Min Mat Sto Matter Collected 1434 | 103 256 9 626 440 Remotely . | . . . . . Salvage Created 2175 | . 358 48 910 859 Parts 180 | . 31 5 88 56 Haulers Intercepted 4 | . . . 2 2 Recyclers Shooed 1 | . . . 1 . Parts Field Recycled . | . . . . . Retrieved Matter . | . . . . . Parts Self-Destructed . | . . . . . Prevented . | . . . . . Kills | -11 -10 -10 -9 -9 ------- Run | Yrd Mat Min Mat Sto Combat Hostiles Destroyed 49 | . 11 3 18 17 Melee 7 | . . . . 7 Guns 27 | . 6 3 11 7 AOE 15 | . 5 . 7 3 Classes Destroyed 10 | . 4 . 6 . Worker 9 | . . . 6 3 Builder 3 | . . . 3 . Tunneler 1 | . . . 1 . Hauler 4 | . . . 2 2 Operator 3 | . 2 . 1 . Watcher 9 | . 2 . 5 2 Swarmer 18 | . 6 3 6 3 Grunt 18 | . 5 . 7 6 Duelist 1 | . . . 1 . Sentry 12 | . . . 4 8 Best Kill Streak 7 | . 4 3 7 6 Combat Bots Only 6 | . 3 3 6 4 Max Kills in Single Turn 4 | . 3 2 4 2 Gunslinging 1 | . . 1 . . Exploded 3 | . 2 . 3 1 Melee 1 | . . . . 1 Uniques/NPCs Destroyed . | . . . . . Combat | -11 -10 -10 -9 -9 -------- Run | Yrd Mat Min Mat Sto Hostile Shots Fired 210 | . 35 10 79 86 Missed 62 | . 10 4 24 24 Damage Taken 2286 | . 328 46 971 941 Core 495 | . 89 6 185 215 Absorbed by Shields . | . . . . . Regen/Repaired (Parts) 99 | . . . 99 . Core Remaining (%) 81 | 100 . 62 . . Volleys Fired 131 | . 23 3 66 39 Largest 2 | . 2 2 2 2 Hottest 100 | . 60 60 100 79 Shots Fired 250 | . 46 6 124 74 Gun 228 | . 46 6 106 70 Cannon . | . . . . . Launcher 14 | . . . 10 4 Special 8 | . . . 8 . Kinetic 141 | . 23 3 66 49 Thermal 30 | . . . 9 21 Explosive 14 | . . . 10 4 Electromagnetic 65 | . 23 3 39 . Robot Hit Streak 13 | . 7 3 13 11 Robot Miss Streak 5 | . 3 1 4 5 Penetration Max . | . . . . . Secondary Targets 3 | . 1 1 1 . Max Gunslinging Chain 1 | . 1 1 1 . Shots Hit Robots 169 | . 26 4 78 61 Core Hits 102 | . 18 4 49 31 Critical Kills . | . . . . . Critical Parts Destroyed 2 | . . . 1 1 Critical Strikes 4 | . . . 2 2 Destroy 2 | . . . 1 1 Corrupt 1 | . . . 1 . Sever 1 | . . . . 1 Melee Attacks 32 | . . . 2 30 Impact . | . . . . . Slashing 32 | . . . 2 30 Piercing . | . . . . . Sneak Attacks 1 | . . . . 1 Combat Hostiles 1 | . . . . 1 Follow-up Attacks . | . . . . . Damage Inflicted 4218 | . 637 57 2009 1515 Guns 2122 | . 370 55 1102 595 Cannons . | . . . . . Explosions 1404 | . 267 . 883 254 Melee 666 | . . . . 666 Ramming 2 | . . 2 . . Kinetic 1172 | . 94 44 657 377 Thermal 624 | . 267 . 139 218 Explosive 1037 | . . . 783 254 Electromagnetic 717 | . 276 11 430 . Impact . | . . . . . Slashing 666 | . . . . 666 Piercing . | . . . . . Highest Corruption 2 | . . . 1 2 Average Corruption 1 | . . . 1 1 Corruption Purged . | . . . . . Corruption Blocked . | . . . . . Effects 4 | . . . 1 3 Matter Fused 2 | . . . 1 1 Parts Fused 1 | . . . . 1 Weapon Failures 1 | . . . . 1 Overload Shots . | . . . . . Overflow Damage 84 | . . . 77 7 Projectiles . | . . . . . Explosions 80 | . . . 77 3 Melee 4 | . . . . 4 Knockbacks . | . . . . . Impact . | . . . . . Kinetic . | . . . . . Secondary . | . . . . . Self-Inflicted Damage 165 | . 85 . 22 58 Shots 4 | . 2 . 1 1 Rammed 1 | . . 1 . . Targets Rammed 1 | . . 1 . . Kicked . | . . . . . Crushed . | . . . . . Highest Temperature 111 | . 36 . 111 57 Average Temperature 21 | . 14 . 31 18 Received Heat Transfer 591 | . 60 . 234 297 Siege Activations . | . . . . . Robots Corrupted . | . . . . . Combat Hostiles . | . . . . . Parts Fried 3 | . 2 . 1 . Impact Corruptions . | . . . . . Robots Melted . | . . . . . Combat Hostiles . | . . . . . Parts Melted 2 | . . . . 2 Heat Transferred 1042 | . 250 . 237 555 Parts Sabotaged . | . . . . . Parts Stolen . | . . . . . Parts Stripped . | . . . . . Power Chain Reactions 5 | . 3 . 2 . Alert | -11 -10 -10 -9 -9 ------- Run | Yrd Mat Min Mat Sto Peak Influence 663 | . 280 73 516 663 Initial 179 | . . 3 27 179 Average 230 | . 106 37 303 354 Maximum Alert Level 2 | . 1 . 2 2 Low Security (%) 44 | 100 85 100 21 6 Level 1 35 | . 14 . 44 64 Level 2 20 | . . . 34 28 Level 3 . | . . . . . Level 4 . | . . . . . Level 5 . | . . . . . High Security . | . . . . . Max Security . | . . . . . Squads Dispatched 9 | . 1 . 2 6 Investigation 3 | . . . 1 2 Extermination . | . . . . . Reinforcement 3 | . 1 . 1 1 Assault . | . . . . . Garrison 3 | . . . . 3 Intercept . | . . . . . Searches Triggered . | . . . . . Construction Impeded . | . . . . . Haulers Reinforced . | . . . . . Active Scanning Responses . | . . . . . Cargo Convoy Interrupts . | . . . . . Stealth | -11 -10 -10 -9 -9 --------- Run | Yrd Mat Min Mat Sto Distress Signals 6 | . 3 . 3 . Communications Jammed . | . . . . . Distress Signals . | . . . . . Times Spotted 80 | . 21 7 27 25 Peak Tracking Total 10 | . 5 10 4 6 Tactical Retreats 3 | . . . 1 2 Traps | -11 -10 -10 -9 -9 ------- Run | Yrd Mat Min Mat Sto Traps Triggered 4 | . . . 1 3 Indirectly . | . . . . . Trap Hack Attempts . | . . . . . Triggered . | . . . . . Disarmed . | . . . . . Reprogrammed . | . . . . . Reused . | . . . . . Traps Extracted . | . . . . . Installed . | . . . . . Triggered . | . . . . . Machines | -11 -10 -10 -9 -9 ---------- Run | Yrd Mat Min Mat Sto Machines Disabled 7 | . 1 . 5 1 Max in Single Turn 1 | . 1 . 1 1 Machines Repaired . | . . . . . Machines Dismantled . | . . . . . Machines Sabotaged . | . . . . . Overloaded Fab Kills . | . . . . . Hacking | -11 -10 -10 -9 -9 --------- Run | Yrd Mat Min Mat Sto Machines Accessed 18 | . 6 . 7 5 Terminals 14 | . 5 . 5 4 Fabricators . | . . . . . Repair Stations 2 | . . . 1 1 Recycling Units 1 | . 1 . . . Scanalyzers 1 | . . . 1 . Garrison Access . | . . . . . Total Hacks 40 | . 15 . 16 9 Successful 19 | . 10 . 6 3 Failed 21 | . 5 . 10 6 Catastrophic 6 | . 1 . 2 3 Database Lockouts . | . . . . . Manual . | . . . . . Terminals 30 | . 11 . 11 8 Fabricators . | . . . . . Repair Stations 4 | . . . 3 1 Recycling Units 4 | . 4 . . . Scanalyzers 2 | . . . 2 . Garrison Access . | . . . . . Terminal Hacks 11 | . 6 . 2 3 Robot Analysis 1 | . 1 . . . Prototype ID Bank 1 | . 1 . . . Open Door 1 | . . . . 1 Emergency Access Points 1 | . 1 . . . Alert Level 1 | . 1 . . . Locate Traps 1 | . . . . 1 Dispatch Records 2 | . . . 1 1 Maintenance Status 1 | . 1 . . . Zone Layout 2 | . 1 . 1 . Fabricator Hacks . | . . . . . Repair Station Hacks 2 | . . . 2 . Scan Component 1 | . . . 1 . Repair 1 | . . . 1 . Recycling Unit Hacks 4 | . 4 . . . Report Inventory 1 | . 1 . . . Retrieve Matter 2 | . 2 . . . Retrieve Components 1 | . 1 . . . Scanalyzer 2 | . . . 2 . Insert Component 1 | . . . 1 . Analyze 1 | . . . 1 . Garrison Access Hacks . | . . . . . Unauthorized Hacks . | . . . . . Terminals . | . . . . . Fabricators . | . . . . . Repair Stations . | . . . . . Recycling Units . | . . . . . Scanalyzers . | . . . . . Garrison Access . | . . . . . Data Cores Recovered 3 | . 2 . 1 . Used 1 | . 1 . . . Hacking Detections 12 | . 2 . 6 4 Full Trace Events 3 | . 1 . 1 1 Feedback Events . | . . . . . Feedback Blocked . | . . . . . Robot Schematics Acquired . | . . . . . Robots Built . | . . . . . Authchips . | . . . . . Time . | . . . . . Total Robot Build Rating . | . . . . . Part Schematics Acquired 1 | . . . 1 . Parts Built . | . . . . . Authchips . | . . . . . Time . | . . . . . Total Part Build Rating . | . . . . . Parts Repaired 1 | . . . 1 . Time 32 | . . . 32 . Parts Recycled . | . . . . . Recycled Matter . | . . . . . Retrieved Matter . | . . . . . Retrieved Components 3 | . 3 . . . Parts Scanalyzed 1 | . . . 1 . Part Schematics Acquired 1 | . . . 1 . Parts Damaged . | . . . . . Bothacking | -11 -10 -10 -9 -9 ------------ Run | Yrd Mat Min Mat Sto Used RIF Installer . | . . . . . Robots Hacked . | . . . . . Non-combat . | . . . . . Combat . | . . . . . Robot Hacks Applied . | . . . . . Relay Couplers Released . | . . . . . Fabnet Peak Effective % . | . . . . . Robots Rewired . | . . . . . Allies Hacked . | . . . . . Hacks Repelled . | . . . . . Allies | -11 -10 -10 -9 -9 -------- Run | Yrd Mat Min Mat Sto Total Allies . | . . . . . Largest Group . | . . . . . Highest-Rated Group . | . . . . . Highest-Rated Ally . | . . . . . Total Orders . | . . . . . Ally Attacks . | . . . . . Total Damage . | . . . . . Kills . | . . . . . Allies Corrupted . | . . . . . Allies Melted . | . . . . . Intel | -11 -10 -10 -9 -9 ------- Run | Yrd Mat Min Mat Sto Robot Analysis Total 1 | . 1 . . . Derelict Logs Recovered 1 | . . 1 . . Drone Launches . | . . . . . Drone Recoveries . | . . . . . Exploration | -11 -10 -10 -9 -9 ------------- Run | Yrd Mat Min Mat Sto Turns Passed 3214 | 54 851 318 1305 686 Spaces Moved 1795 | 32 475 189 814 285 Core 11 | 11 . . . . Treads 1088 | 21 475 189 186 217 Legs . | . . . . . Wheels 696 | . . . 628 68 Hover . | . . . . . Flight . | . . . . . Fastest Speed 50 | 50 160 160 95 110 Average Speed 137 | 131 160 160 116 148 Slowest Speed 160 | 160 160 160 160 160 Overloaded Moves . | . . . . . Propulsion Burnouts . | . . . . . Robots Hopped . | . . . . . Cave-ins Triggered 1 | . . . 1 . Exploration Rate (%) 46 | 4 51 61 69 49 Regions Visited 4 Branch Regions 2 Pre-discovered Areas . | . . . . . Known Exits Taken 3 | . 1 1 1 . Unknown Exits Taken 1 | 1 . . . . Scrap Searched . | . . . . . Spaces Dug 15 | . . . 9 6 Terrain Destroyed 136 | . 9 . 86 41 Melee 8 | . . . 2 6 Projectile 7 | . . . 7 . AOE 121 | . 9 . 77 35 Terrain Rammed . | . . . . . Walls Destroyed . | . . . . . Machines Disabled . | . . . . . Actions | -11 -10 -10 -9 -9 --------- Run | Yrd Mat Min Mat Sto Total 2227 | 42 523 199 1025 438 Wait 137 | . 6 2 73 56 Move 1791 | 31 474 189 812 285 Hop . | . . . . . Pick Up 27 | 2 12 2 10 1 Fast Attach 23 | 6 1 . 15 1 Attach 13 | 1 1 . 5 6 Detach 12 | 1 1 . 7 3 Swap 31 | . . 1 15 15 Drop 29 | 1 5 2 19 2 Fire 131 | . 23 3 66 39 Melee 32 | . . . 2 30 Ram . | . . . . . Kick . | . . . . . Crush . | . . . . . Escape Stasis 1 | . . . 1 . Rewire . | . . . . . Trap . | . . . . . Miscellaneous . | . . . . . Route ------- -11/Scrapyard -10/Materials (discovered 2 exits: *Mat / *Min) -10/Mines -9/Materials (discovered 4 exits: *Mat x3 / *Sto) -9/Storage History --------- Turn | Location | Event 25 | -11/Scrapyard | Discovered new exit (range 16) 55 | -11/Scrapyard | Entered Materials 244 | -10/Materials | Discovered new exit (range 16) 271 | -10/Materials | Identified exit to Mines 311 | -10/Materials | Build established: Mutant 499 | -10/Materials | Discovered new exit (range 11) 515 | -10/Materials | Identified exit to Materials 906 | -10/Materials | Entered Mines 945 | -10/Mines | Found a hidden stash of uninstalled traps 1018 | -10/Mines | Discovered exit to Materials (range 15) 1025 | -10/Mines | Learned 4 Materials zone layouts 1123 | -10/Mines | A weapon hastily lodged in a ceiling crevice suddenly fell to the ground 1169 | -10/Mines | Received a Rocket Launcher from a helpful Derelict 1215 | -10/Mines | Assembled infested the area 1220 | -10/Mines | Assisted by a Guerilla fighting off Assembled 1224 | -10/Mines | Entered Materials 1224 | -9/Materials | Evolved 2 slots: Utility x2 1225 | -9/Materials | Discovered new exit (range 7) 1259 | -9/Materials | Identified exit to Storage 1506 | -9/Materials | Discovered new exit (range 15) 1527 | -9/Materials | Identified exit to Materials 1883 | -9/Materials | Discovered exit to Materials (range 14) 2228 | -9/Materials | Discovered exit to Materials (range 15) 2308 | -9/Materials | Repaired Hvy. Assault Rifle 2427 | -9/Materials | Crushed by falling debris 2529 | -9/Materials | Entered Storage 2646 | -9/Storage | Core integrity fell below 50% 2761 | -9/Storage | Garrison activated, responded to threat 3071 | -9/Storage | Core integrity fell below 20% 3215 | -9/Storage | Destroyed by Y-45 Defender with Beam Rifle Last Messages --------------- 03132_ The unstable cave ceiling collapses. 03132_ Y-45 Defender destroyed. 03135_ S-10 Pest destroyed. 03135_ Destroyed Flight Unit. 03138_ The unstable cave ceiling collapses. 03138_ S-10 Pest destroyed. 03139_ Rocket Launcher destroyed. 03146_ System corrupted: Matter fused (-7). 03149_ The unstable cave ceiling collapses. 03174_ Destroyed Heat Sink. 03176_ Y-45 Defender destroyed. 03181_ G-34 Mercenary destroyed. 03183_ Acquired 46 matter. 03185_ The unstable cave ceiling collapses. 03195_ G-34 Mercenary Ion Engine severed. 03199_ G-34 Mercenary destroyed. 03204_ Acquired 53 matter. 03205_ Acquired 38 matter. 03211_ G-34 Mercenary destroyed. 03214_ Discarded Targeting Computer. Map ----- +----------------------------------------------------+ | ?????????????????????????????????????? | | ?????????????????????????????????????? | | ?????????????????????????????????????? | | ?????????????????????????????????????? | | ?????????????????????????????????????? | | ????????????????????? ?????????????? | | ??????????????????? ?????????????? | | ?????????????????# #+??????????? | | ?????????????????? #??? ?????? | | ?????????????????? #??? ?????? | | ?????????????????? * #??? ?????? | | ?????????????????? % #??? ?????? | | ??????????????????"% ! #??# #????? | | ??????????????????"= = #?? ????? | | ??????????????????" ??? T ????? | | ?????????????????"" =%[###?? ????? | | ?????????????????? ! #??# #????? | | ??????????????????# % # ##?# #????? | | ???#???##########?# *%= ##?#^#????? | | ???# ??# #?# = ### #????? | | ???? ?# #?# ### #????? | | ???? # [= #?# "" " #????? | | ????? # """%= ### """# #????? | | ???? + """! ;# """ R"# #????? | | ???????# """ ### """ """# #????? | | ???????# """=@ #?# """ #### #????? | | ???????#["""! #?# #??# #????? | | ???????#=**Y [[ #?##########??# #????? | | ???????# ########?????????????# #????? | | ???????##?????????????????????# #????? | | ??????????????????????????????# #????? | | ??????????????????????????#####+###### | | ??????????????????????????# ! + | | ??????????????????????????# ## | | ??????????????????????????# ] !#? | | ??????????????????????????# ! #? | | ??????????????????????????###########? | | | | | | | | | | | | | | | | | | | | | | | | | | | +----------------------------------------------------+ Best States ------------- Heat Dissipation 28 Energy Generation 14 Energy Capacity 280 Matter Stores 300 Matter Capacity 300 Sight Range 18 Robot Scan Range 14 Terrain Scan Density 10 Armor Coverage 150 Weapon Shielding 33 Evasion (%) 41 Targeting Accuracy 5 Recoil Reduction 2 Item Schematics ----------------- Signal Interpreter | -9/Materials | Scanalyzed Robot Schematics ------------------ None Fabricated ------------ Nothing Alien Tech Used ----------------- None Achievements -------------- Part-time Excavator Unlikely Earthworm Challenges ------------ None Game ------ Seed ArcClaymoresBattery Manual? 0 Play Time 00:54:46 Cumulative 26.3 hours Start 2024.05.31 @ 07:30:53 End 2024.05.31 @ 08:25:25 Sessions 1 Manual Loads 0 Difficulty Rogue Special Mode None Game No. 17 Rogue 10 Adventurer 7 Explorer 0 Win Type - Total 0 Types 0/0/0/0/0/0/0/0/0 Lore% 22 Gallery% 27 Achievement% 24 Wizard Run 0 Options --------- Layout 0 ASCII 0 Keyboard 1 Movement Vi Keybinds 0 Fullscreen 2 Font 24/Smallcaps Map View 76x50 Zoom Use 1% Tactical HUD 1 Map Filters NONE Filters NONE Steam 1 RUN: 318c9669-02c7-4d6a-bc56-03b001890d56